[Event "*** Titled Tuesday Blitz"]
[Site "Chess.com"]
[Date "2018.07.03"]
[Round "8"]
[White "chesstatour"]
[Black "AndrewDGreen"]
[Result "0-1"]
[WhiteElo "2021"]
[BlackElo "2182"]
[TimeControl "180+2"]
[EndTime "14:43:12 PDT"]
[Termination "AndrewDGreen won by resignation"]

1. c4 {[%clk 0:03:01.9]} 1... g6 {[%clk 0:02:57.5]} 2. Nc3 {[%clk 0:03:01.9]}
2... Bg7 {[%clk 0:02:58.4]} 3. d4 {[%clk 0:03:00.9]} 3... Nf6 {[%clk 0:02:59]}
4. e4 {[%clk 0:03:01.7]} 4... d6 {[%clk 0:02:59.3]} 5. f4 {[%clk 0:03:03.1]}
5... O-O {[%clk 0:03:00]} 6. Nf3 {[%clk 0:03:04.4]} 6... c5 {[%clk 0:03:01.3]}
7. d5 {[%clk 0:03:05.8]} 7... e6 {[%clk 0:03:02.7]} 8. dxe6 {[%clk 0:03:07.7]}
8... Bxe6 {[%clk 0:03:00.9]} 9. Bd3 {[%clk 0:03:09.6]} 9... Nc6 {[%clk
0:02:58.9]} 10. f5 {[%clk 0:03:10.7]} 10... Bc8 {[%clk 0:02:49.1]} 11. O-O
{[%clk 0:03:10.5]} 11... Re8 {[%clk 0:02:43.3]} 12. Bg5 {[%clk 0:02:59.3]} 12...
Qb6 {[%clk 0:02:38.1]} 13. Qe1 {[%clk 0:02:20.5]} 13... Ng4 {[%clk 0:01:51.8]}
14. Nd5 {[%clk 0:01:53.8]} 14... Qxb2 {[%clk 0:01:44.7]} 15. Rb1 {[%clk
0:01:44.9]} 15... Qa3 {[%clk 0:01:37.9]} 16. Nc7 {[%clk 0:00:44]} 16... Bxf5
{[%clk 0:01:34.9]} 17. Nxa8 {[%clk 0:00:32.6]} 17... Qxd3 {[%clk 0:01:33]} 18.
Rd1 {[%clk 0:00:24.4]} 18... Qxc4 {[%clk 0:01:24.9]} 19. Qh4 {[%clk 0:00:19.3]}
19... Rxe4 {[%clk 0:01:08.7]} 20. Nd2 {[%clk 0:00:08.5]} 20... Qd4+ {[%clk
0:01:03.2]} 21. Kh1 {[%clk 0:00:09]} 21... Re2 {[%clk 0:00:46.1]} 22. Nf3 {[%clk
0:00:07.5]} 22... Qb2 {[%clk 0:00:27.2]} 23. h3 {[%clk 0:00:07.4]} 23... Nf2+
{[%clk 0:00:19.7]} 24. Rxf2 {[%clk 0:00:07.9]} 24... Rxf2 {[%clk 0:00:21.6]} 25.
Nc7 {[%clk 0:00:06.2]} 25... Rxg2 {[%clk 0:00:19.5]} 26. Bf6 {[%clk 0:00:03.9]}
26... Bxf6 {[%clk 0:00:19.4]} 0-1

[Event "*** Titled Tuesday Blitz"]
[Site "Chess.com"]
[Date "2018.07.03"]
[Round "8"]
[White "BlackBoarder"]
[Black "Orest_Vovk"]
[Result "0-1"]
[WhiteElo "2240"]
[BlackElo "2252"]
[TimeControl "180+2"]
[EndTime "14:43:13 PDT"]
[Termination "Orest_Vovk won on time"]

1. e4 {[%clk 0:03:01.9]} 1... Nc6 {[%clk 0:03:00.2]} 2. d4 {[%clk 0:02:59]} 2...
e5 {[%clk 0:03:00.8]} 3. Nf3 {[%clk 0:02:59.6]} 3... Nxd4 {[%clk 0:02:59.9]} 4.
Nxd4 {[%clk 0:03:00]} 4... exd4 {[%clk 0:03:01.7]} 5. Qxd4 {[%clk 0:03:01.7]}
5... Ne7 {[%clk 0:03:02.6]} 6. Nc3 {[%clk 0:02:53.6]} 6... Nc6 {[%clk
0:03:03.3]} 7. Qd1 {[%clk 0:02:42.9]} 7... Bb4 {[%clk 0:03:03.6]} 8. Bd2 {[%clk
0:02:43.1]} 8... O-O {[%clk 0:03:04.1]} 9. Be2 {[%clk 0:02:44.3]} 9... d6 {[%clk
0:03:04.1]} 10. O-O {[%clk 0:02:45]} 10... Re8 {[%clk 0:03:05.1]} 11. f3 {[%clk
0:02:44.8]} 11... Bc5+ {[%clk 0:03:02.9]} 12. Kh1 {[%clk 0:02:45.4]} 12... Re5
{[%clk 0:02:55.5]} 13. Na4 {[%clk 0:02:43.8]} 13... Qh4 {[%clk 0:02:47.8]} 14.
Be1 {[%clk 0:02:25.9]} 14... Qh6 {[%clk 0:02:31.5]} 15. Bg3 {[%clk 0:02:08.2]}
15... Be3 {[%clk 0:02:14.4]} 16. Bxe5 {[%clk 0:02:01.9]} 16... Nxe5 {[%clk
0:02:12.4]} 17. g3 {[%clk 0:01:23.6]} 17... Bh3 {[%clk 0:02:06.5]} 18. Re1
{[%clk 0:01:21.3]} 18... Bf2 {[%clk 0:02:03.3]} 19. Nc3 {[%clk 0:01:19.6]} 19...
Bd7 {[%clk 0:01:48.5]} 20. Kg2 {[%clk 0:00:29.7]} 20... Bxe1 {[%clk 0:01:33.8]}
21. Qxe1 {[%clk 0:00:31.6]} 21... Bh3+ {[%clk 0:01:31.8]} 22. Kh1 {[%clk
0:00:28.9]} 22... Re8 {[%clk 0:01:26]} 23. Qf2 {[%clk 0:00:24.6]} 23... Qd2
{[%clk 0:01:23.3]} 24. Nd5 {[%clk 0:00:08.7]} 24... Qxc2 {[%clk 0:01:13]} 25.
Nf4 {[%clk 0:00:07.5]} 25... Bd7 {[%clk 0:01:08.6]} 26. b3 {[%clk 0:00:07.6]}
26... Bc6 {[%clk 0:01:01.1]} 27. Kg2 {[%clk 0:00:06.5]} 27... a6 {[%clk
0:00:52.7]} 28. Bf1 {[%clk 0:00:07.8]} 28... Qc3 {[%clk 0:00:46.2]} 29. Rd1
{[%clk 0:00:08.6]} 29... Nxf3 {[%clk 0:00:45.3]} 30. Rd3 {[%clk 0:00:09]} 30...
Ne1+ {[%clk 0:00:43.5]} 0-1

[Event "*** Titled Tuesday Blitz"]
[Site "Chess.com"]
[Date "2018.07.03"]
[Round "8"]
[White "BillForster"]
[Black "Nathan_Filgueiras"]
[Result "1-0"]
[WhiteElo "1720"]
[BlackElo "2126"]
[TimeControl "180+2"]
[EndTime "14:43:20 PDT"]
[Termination "BillForster won by resignation"]

1. d4 {[%clk 0:03:01.9]} 1... Nf6 {[%clk 0:03:00.2]} 2. c4 {[%clk 0:03:01.5]}
2... e6 {[%clk 0:03:01]} 3. g3 {[%clk 0:03:00.4]} 3... d5 {[%clk 0:03:01.1]} 4.
Bg2 {[%clk 0:03:00.4]} 4... dxc4 {[%clk 0:02:59.1]} 5. Qa4+ {[%clk 0:02:54.3]}
5... Nbd7 {[%clk 0:02:51.9]} 6. Qxc4 {[%clk 0:02:54.3]} 6... a6 {[%clk
0:02:48.8]} 7. Nf3 {[%clk 0:02:51.9]} 7... b5 {[%clk 0:02:47.5]} 8. Qc2 {[%clk
0:02:51.7]} 8... Bb7 {[%clk 0:02:46]} 9. O-O {[%clk 0:02:50.1]} 9... Be7 {[%clk
0:02:42.8]} 10. b3 {[%clk 0:02:31.8]} 10... O-O {[%clk 0:02:42.1]} 11. Bb2
{[%clk 0:02:31.8]} 11... c5 {[%clk 0:02:43.6]} 12. Nbd2 {[%clk 0:02:23.4]} 12...
Rc8 {[%clk 0:02:40.1]} 13. dxc5 {[%clk 0:02:08.2]} 13... Nxc5 {[%clk 0:02:31.2]}
14. Qd1 {[%clk 0:02:07.6]} 14... Qb6 {[%clk 0:02:26.2]} 15. Rc1 {[%clk
0:02:05.2]} 15... Rfd8 {[%clk 0:02:25]} 16. Qe1 {[%clk 0:02:03.3]} 16... a5
{[%clk 0:01:29.1]} 17. Ne5 {[%clk 0:01:53.5]} 17... Bxg2 {[%clk 0:01:24.3]} 18.
Kxg2 {[%clk 0:01:52.9]} 18... a4 {[%clk 0:01:16.3]} 19. b4 {[%clk 0:01:39.1]}
19... Qb7+ {[%clk 0:01:13.6]} 20. Ndf3 {[%clk 0:01:32.3]} 20... Nce4 {[%clk
0:01:09.3]} 21. Rxc8 {[%clk 0:01:20.4]} 21... Rxc8 {[%clk 0:01:08.8]} 22. a3
{[%clk 0:01:15.8]} 22... Rc2 {[%clk 0:01:05.6]} 23. Nd3 {[%clk 0:01:04.5]} 23...
Nd5 {[%clk 0:00:30.1]} 24. Kg1 {[%clk 0:01:00.7]} 24... Ndc3 {[%clk 0:00:24.7]}
25. Nd4 {[%clk 0:00:56.1]} 25... Ng5 {[%clk 0:00:06.2]} 26. f3 {[%clk
0:00:48.7]} 26... Nxe2+ {[%clk 0:00:04.1]} 27. Nxe2 {[%clk 0:00:47.6]} 27...
Nxf3+ {[%clk 0:00:05.4]} 28. Rxf3 {[%clk 0:00:45.2]} 28... Qxf3 {[%clk
0:00:07.3]} 29. Nef4 {[%clk 0:00:30.8]} 29... Qe3+ {[%clk 0:00:08.4]} 30. Qxe3
{[%clk 0:00:30.1]} 1-0

[Event "*** Titled Tuesday Blitz"]
[Site "Chess.com"]
[Date "2018.07.03"]
[Round "8"]
[White "Paralinch"]
[Black "eljanov"]
[Result "1-0"]
[WhiteElo "2803"]
[BlackElo "2659"]
[TimeControl "180+2"]
[EndTime "14:43:27 PDT"]
[Termination "Paralinch won by resignation"]

1. e4 {[%clk 0:03:01.9]} 1... e5 {[%clk 0:02:58.7]} 2. Nf3 {[%clk 0:03:03.2]}
2... Nc6 {[%clk 0:02:58.8]} 3. Nc3 {[%clk 0:03:04.8]} 3... Nf6 {[%clk
0:02:59.2]} 4. a3 {[%clk 0:03:06.4]} 4... d5 {[%clk 0:02:59]} 5. exd5 {[%clk
0:03:05.8]} 5... Nxd5 {[%clk 0:03:00.2]} 6. Nxe5 {[%clk 0:03:07.3]} 6... Nxe5
{[%clk 0:02:51.5]} 7. Qe2 {[%clk 0:03:08.2]} 7... Bd6 {[%clk 0:02:46.5]} 8. Nxd5
{[%clk 0:03:08.5]} 8... O-O {[%clk 0:02:46.1]} 9. d4 {[%clk 0:03:04.9]} 9... Ng6
{[%clk 0:02:04.1]} 10. Be3 {[%clk 0:02:58.9]} 10... Re8 {[%clk 0:01:52.3]} 11.
Nc3 {[%clk 0:02:52.5]} 11... Nf4 {[%clk 0:01:05.5]} 12. Qd2 {[%clk 0:02:50.2]}
12... Bg4 {[%clk 0:01:06.2]} 13. h3 {[%clk 0:02:37.6]} 13... Bh5 {[%clk
0:01:02.2]} 14. g4 {[%clk 0:02:38.4]} 14... Bg6 {[%clk 0:00:56.3]} 15. O-O-O
{[%clk 0:02:39.2]} 15... Qf6 {[%clk 0:00:56]} 16. h4 {[%clk 0:02:28]} 16... h5
{[%clk 0:00:52.5]} 17. Bc4 {[%clk 0:01:50.7]} 17... hxg4 {[%clk 0:00:48.3]} 18.
h5 {[%clk 0:01:52]} 18... Bxh5 {[%clk 0:00:42.7]} 19. Kb1 {[%clk 0:01:49.6]}
19... g6 {[%clk 0:00:38.4]} 20. Rdg1 {[%clk 0:01:35.3]} 20... c6 {[%clk
0:00:35]} 21. Ne2 {[%clk 0:01:28.1]} 21... Nd5 {[%clk 0:00:26.7]} 22. Bg5 {[%clk
0:01:21.5]} 22... Qxf2 {[%clk 0:00:22.7]} 23. Bh4 {[%clk 0:01:01.3]} 23... Qe3
{[%clk 0:00:21.6]} 24. Qa5 {[%clk 0:00:49.4]} 24... b5 {[%clk 0:00:20.9]} 25.
Bxd5 {[%clk 0:00:42.1]} 25... cxd5 {[%clk 0:00:21.7]} 26. Nc3 {[%clk 0:00:44]}
26... g3 {[%clk 0:00:18.3]} 27. Nxd5 {[%clk 0:00:42]} 27... Qf3 {[%clk
0:00:18.9]} 28. Nf6+ {[%clk 0:00:42.4]} 28... Kg7 {[%clk 0:00:20]} 29. Qxb5
{[%clk 0:00:28.1]} 29... Re2 {[%clk 0:00:10.8]} 30. Nxh5+ {[%clk 0:00:27.7]}
30... Qxh5 {[%clk 0:00:11.2]} 31. Bf6+ {[%clk 0:00:28.7]} 31... Kxf6 {[%clk
0:00:12.4]} 32. Rxh5 {[%clk 0:00:29.6]} 32... gxh5 {[%clk 0:00:13.2]} 33. Qxe2
{[%clk 0:00:29.7]} 1-0

[Event "*** Titled Tuesday Blitz"]
[Site "Chess.com"]
[Date "2018.07.03"]
[Round "8"]
[White "DishonorOnYourCow"]
[Black "NateSolon"]
[Result "0-1"]
[WhiteElo "2238"]
[BlackElo "2393"]
[TimeControl "180+2"]
[EndTime "14:43:29 PDT"]
[Termination "NateSolon won by checkmate"]

1. d4 {[%clk 0:03:01.9]} 1... d5 {[%clk 0:03:00.5]} 2. c4 {[%clk 0:03:02.3]}
2... dxc4 {[%clk 0:03:01.6]} 3. Nf3 {[%clk 0:03:02.5]} 3... a6 {[%clk
0:03:02.9]} 4. a4 {[%clk 0:03:01.9]} 4... Nf6 {[%clk 0:03:02.6]} 5. e3 {[%clk
0:03:01.7]} 5... Bg4 {[%clk 0:03:02.2]} 6. Bxc4 {[%clk 0:03:02.9]} 6... e6
{[%clk 0:03:03.1]} 7. O-O {[%clk 0:03:03.8]} 7... Nc6 {[%clk 0:03:03.9]} 8. Nc3
{[%clk 0:03:05.2]} 8... Bd6 {[%clk 0:03:03.2]} 9. h3 {[%clk 0:03:01.9]} 9... Bh5
{[%clk 0:03:03.9]} 10. Re1 {[%clk 0:02:56.8]} 10... O-O {[%clk 0:03:03.6]} 11.
e4 {[%clk 0:02:57.3]} 11... Bxf3 {[%clk 0:03:04]} 12. gxf3 {[%clk 0:02:55.6]}
12... e5 {[%clk 0:02:50.2]} 13. d5 {[%clk 0:02:53.4]} 13... Nd4 {[%clk 0:02:51]}
14. Kh2 {[%clk 0:02:42.4]} 14... Nh5 {[%clk 0:02:49.6]} 15. Be3 {[%clk
0:02:37.5]} 15... Qh4 {[%clk 0:02:44.7]} 16. Rg1 {[%clk 0:02:37]} 16... Nf4
{[%clk 0:02:33.7]} 17. Bf1 {[%clk 0:02:23.5]} 17... f5 {[%clk 0:02:27.4]} 18.
Rg3 {[%clk 0:01:41.4]} 18... h6 {[%clk 0:02:03.4]} 19. exf5 {[%clk 0:00:52.5]}
19... Nxf5 {[%clk 0:01:41.1]} 20. Rg4 {[%clk 0:00:26.8]} 20... Nxe3 {[%clk
0:01:41.5]} 21. Rxh4 {[%clk 0:00:25.9]} 21... Nxd1 {[%clk 0:01:42.7]} 22. Rxd1
{[%clk 0:00:25.9]} 22... h5 {[%clk 0:01:42.5]} 23. Ne2 {[%clk 0:00:18.8]} 23...
g5 {[%clk 0:01:26.6]} 24. Nxf4 {[%clk 0:00:16]} 24... gxh4 {[%clk 0:01:27.7]}
25. Nxh5 {[%clk 0:00:15.1]} 25... Rxf3 {[%clk 0:01:27.4]} 26. Kg2 {[%clk
0:00:13.6]} 26... Raf8 {[%clk 0:01:27.9]} 27. Bd3 {[%clk 0:00:12.9]} 27... Rxf2+
{[%clk 0:01:26.5]} 28. Kh1 {[%clk 0:00:14.1]} 28... Kh8 {[%clk 0:01:08.3]} 29.
Be4 {[%clk 0:00:12.4]} 29... Rxb2 {[%clk 0:01:06.6]} 30. Rg1 {[%clk 0:00:11.2]}
30... Rff2 {[%clk 0:01:01.8]} 31. Rg7 {[%clk 0:00:08.8]} 31... Ra2 {[%clk
0:00:52.9]} 32. Rh7+ {[%clk 0:00:09.4]} 32... Kg8 {[%clk 0:00:53.4]} 33. Rg7+
{[%clk 0:00:10.7]} 33... Kf8 {[%clk 0:00:54.6]} 34. Kg1 {[%clk 0:00:06.3]} 34...
Rf7 {[%clk 0:00:48.3]} 35. Rg6 {[%clk 0:00:04.2]} 35... Bc5+ {[%clk 0:00:44.9]}
36. Kh1 {[%clk 0:00:02.1]} 36... Rf1+ {[%clk 0:00:45.2]} 37. Rg1 {[%clk
0:00:02.2]} 37... Rxg1# {[%clk 0:00:46.4]} 0-1

[Event "*** Titled Tuesday Blitz"]
[Site "Chess.com"]
[Date "2018.07.03"]
[Round "8"]
[White "Mikhail_Antipov"]
[Black "SergeiAza"]
[Result "0-1"]
[WhiteElo "2808"]
[BlackElo "2701"]
[TimeControl "180+2"]
[EndTime "14:43:33 PDT"]
[Termination "SergeiAza won by resignation"]

1. d4 {[%clk 0:02:58.3]} 1... d5 {[%clk 0:02:59.6]} 2. c4 {[%clk 0:02:58.5]}
2... e6 {[%clk 0:03:00.7]} 3. Nf3 {[%clk 0:02:57.9]} 3... Nf6 {[%clk 0:03:00.8]}
4. g3 {[%clk 0:02:58.8]} 4... dxc4 {[%clk 0:02:58.3]} 5. Bg2 {[%clk 0:02:55.9]}
5... a6 {[%clk 0:02:59.8]} 6. O-O {[%clk 0:02:54.2]} 6... Nc6 {[%clk 0:03:01.3]}
7. Nc3 {[%clk 0:02:35.6]} 7... Rb8 {[%clk 0:02:58.1]} 8. a3 {[%clk 0:02:17.5]}
8... Be7 {[%clk 0:02:54.1]} 9. e4 {[%clk 0:02:18]} 9... O-O {[%clk 0:02:48.7]}
10. e5 {[%clk 0:02:10]} 10... Nd5 {[%clk 0:02:46.9]} 11. h4 {[%clk 0:02:11.1]}
11... Nxc3 {[%clk 0:02:42.8]} 12. bxc3 {[%clk 0:02:13]} 12... b5 {[%clk
0:02:14.4]} 13. Ng5 {[%clk 0:00:59.1]} 13... h6 {[%clk 0:01:56.3]} 14. Nh3
{[%clk 0:00:29.8]} 14... Bb7 {[%clk 0:01:49.9]} 15. Nf4 {[%clk 0:00:20.4]} 15...
Qd7 {[%clk 0:01:41.1]} 16. Nh5 {[%clk 0:00:14.6]} 16... f5 {[%clk 0:01:38.4]}
17. exf6 {[%clk 0:00:11.4]} 17... Bxf6 {[%clk 0:01:39.6]} 18. Qg4 {[%clk
0:00:09.3]} 18... Kh8 {[%clk 0:01:33.5]} 19. Be4 {[%clk 0:00:08.4]} 19... Ne7
{[%clk 0:01:28.5]} 20. Bc2 {[%clk 0:00:09.4]} 20... Nf5 {[%clk 0:01:22.5]} 21.
Nf4 {[%clk 0:00:08.5]} 21... Kg8 {[%clk 0:01:00.8]} 22. Re1 {[%clk 0:00:09.5]}
22... Rbe8 {[%clk 0:00:48.9]} 23. Bd2 {[%clk 0:00:10.7]} 23... Bxd4 {[%clk
0:00:46.6]} 24. cxd4 {[%clk 0:00:12.6]} 24... Nxd4 {[%clk 0:00:47.6]} 25. Be4
{[%clk 0:00:05]} 25... Bxe4 {[%clk 0:00:44.4]} 26. Rxe4 {[%clk 0:00:06.9]} 26...
Nb3 {[%clk 0:00:45.7]} 27. Bc3 {[%clk 0:00:05]} 27... Nxa1 {[%clk 0:00:45]} 28.
Nh5 {[%clk 0:00:03.9]} 28... Rf7 {[%clk 0:00:39.7]} 29. Bxa1 {[%clk 0:00:05]}
29... Rd8 {[%clk 0:00:33.7]} 30. Kh2 {[%clk 0:00:05.8]} 30... e5 {[%clk
0:00:32.4]} 31. Qe2 {[%clk 0:00:03]} 31... Qd2 {[%clk 0:00:30.8]} 32. Rxe5
{[%clk 0:00:04.3]} 32... Rxf2+ {[%clk 0:00:30.1]} 0-1

[Event "*** Titled Tuesday Blitz"]
[Site "Chess.com"]
[Date "2018.07.03"]
[Round "8"]
[White "dolynachess"]
[Black "Godzillator"]
[Result "1-0"]
[WhiteElo "2402"]
[BlackElo "2318"]
[TimeControl "180+2"]
[EndTime "14:43:37 PDT"]
[Termination "dolynachess won by resignation"]

1. d4 {[%clk 0:03:01.9]} 1... d5 {[%clk 0:03:00.7]} 2. c4 {[%clk 0:03:02.8]}
2... c6 {[%clk 0:03:01.9]} 3. Nc3 {[%clk 0:03:03.4]} 3... Nf6 {[%clk 0:03:03.1]}
4. Nf3 {[%clk 0:03:02.6]} 4... a6 {[%clk 0:03:04.1]} 5. e3 {[%clk 0:02:49.1]}
5... Bf5 {[%clk 0:03:04]} 6. Ne5 {[%clk 0:02:45.2]} 6... Nbd7 {[%clk 0:03:03.7]}
7. f4 {[%clk 0:02:46.2]} 7... Nxe5 {[%clk 0:03:02.4]} 8. fxe5 {[%clk 0:02:43.8]}
8... Ne4 {[%clk 0:03:03.2]} 9. Bd3 {[%clk 0:02:45]} 9... Nxc3 {[%clk 0:03:03.6]}
10. bxc3 {[%clk 0:02:46.3]} 10... Bxd3 {[%clk 0:03:04.5]} 11. Qxd3 {[%clk
0:02:44.2]} 11... e6 {[%clk 0:03:00.2]} 12. O-O {[%clk 0:02:25.2]} 12... Be7
{[%clk 0:03:00.5]} 13. a4 {[%clk 0:02:22.8]} 13... dxc4 {[%clk 0:02:49.4]} 14.
Qxc4 {[%clk 0:02:23.2]} 14... Qd5 {[%clk 0:02:50.4]} 15. Qxd5 {[%clk 0:02:12]}
15... cxd5 {[%clk 0:02:50]} 16. Ba3 {[%clk 0:01:50.2]} 16... Rc8 {[%clk
0:02:48.6]} 17. Bxe7 {[%clk 0:01:48.7]} 17... Kxe7 {[%clk 0:02:48.9]} 18. Rab1
{[%clk 0:01:49]} 18... Rc7 {[%clk 0:02:49.5]} 19. Rb6 {[%clk 0:01:44.4]} 19...
Rd8 {[%clk 0:02:43.5]} 20. Rfb1 {[%clk 0:01:44]} 20... Rdd7 {[%clk 0:02:44.6]}
21. R1b3 {[%clk 0:01:44.2]} 21... Kd8 {[%clk 0:02:45.6]} 22. Kf2 {[%clk
0:01:44.7]} 22... Kc8 {[%clk 0:02:46.8]} 23. Ke2 {[%clk 0:01:45.8]} 23... Rc4
{[%clk 0:02:47.7]} 24. R6b4 {[%clk 0:01:40.1]} 24... Rdc7 {[%clk 0:02:46.5]} 25.
Kd2 {[%clk 0:01:36.4]} 25... a5 {[%clk 0:02:36.8]} 26. Rxc4 {[%clk 0:01:22.6]}
26... Rxc4 {[%clk 0:02:37.5]} 27. Ra3 {[%clk 0:01:23.6]} 27... Kc7 {[%clk
0:02:38.8]} 28. Kd3 {[%clk 0:01:24.8]} 28... Kc6 {[%clk 0:02:39.7]} 29. e4
{[%clk 0:01:25.4]} 29... b5 {[%clk 0:02:38.1]} 30. axb5+ {[%clk 0:01:24]} 30...
Kxb5 {[%clk 0:02:39.1]} 31. exd5 {[%clk 0:01:20.4]} 31... exd5 {[%clk
0:02:39.3]} 32. Rb3+ {[%clk 0:01:21.3]} 32... Kc6 {[%clk 0:02:40.4]} 33. Rb8
{[%clk 0:01:19.3]} 33... Kd7 {[%clk 0:02:35.3]} 34. Rb6 {[%clk 0:01:10]} 34...
Rc6 {[%clk 0:02:27.8]} 35. Rb5 {[%clk 0:01:06.7]} 35... Ra6 {[%clk 0:02:28.7]}
36. Rxd5+ {[%clk 0:01:06.8]} 36... Ke6 {[%clk 0:02:29.9]} 37. Rb5 {[%clk
0:01:01]} 37... a4 {[%clk 0:02:30.9]} 38. Rb2 {[%clk 0:01:00.4]} 38... a3 {[%clk
0:02:28.9]} 39. Ra2 {[%clk 0:01:01.3]} 39... f6 {[%clk 0:02:29.5]} 40. exf6
{[%clk 0:01:01.1]} 40... gxf6 {[%clk 0:02:30.2]} 41. Kc4 {[%clk 0:01:01]} 41...
Kf5 {[%clk 0:02:16.4]} 42. Kb3 {[%clk 0:00:57.8]} 42... Ke4 {[%clk 0:02:16.4]}
43. Rxa3 {[%clk 0:00:57.8]} 43... Rb6+ {[%clk 0:02:17.6]} 44. Kc2 {[%clk
0:00:58.9]} 44... h6 {[%clk 0:02:09.4]} 45. Ra1 {[%clk 0:00:54.8]} 45... h5
{[%clk 0:02:04.9]} 46. Re1+ {[%clk 0:00:51.6]} 46... Kd5 {[%clk 0:02:05.4]} 47.
Kd3 {[%clk 0:00:44.6]} 47... Rb2 {[%clk 0:02:05.9]} 48. Re2 {[%clk 0:00:44]}
48... Rb3 {[%clk 0:02:06.8]} 49. Rf2 {[%clk 0:00:44.6]} 49... Ke6 {[%clk
0:02:07]} 50. g3 {[%clk 0:00:43.7]} 50... Ra3 {[%clk 0:02:06.5]} 51. Kc4 {[%clk
0:00:42.8]} 51... Ke7 {[%clk 0:02:00.4]} 52. Rf4 {[%clk 0:00:42.5]} 52... Ke6
{[%clk 0:02:00.7]} 53. Rh4 {[%clk 0:00:41.7]} 53... Ra5 {[%clk 0:02:01.7]} 54.
Kd3 {[%clk 0:00:39.3]} 54... Rf5 {[%clk 0:01:53.9]} 55. c4 {[%clk 0:00:34.9]}
55... Kd6 {[%clk 0:01:54.4]} 56. Rf4 {[%clk 0:00:32.8]} 1-0

[Event "*** Titled Tuesday Blitz"]
[Site "Chess.com"]
[Date "2018.07.03"]
[Round "8"]
[White "Triumphmate"]
[Black "dinesh501"]
[Result "0-1"]
[WhiteElo "2227"]
[BlackElo "2259"]
[TimeControl "180+2"]
[EndTime "14:43:44 PDT"]
[Termination "dinesh501 won by resignation"]

1. e4 {[%clk 0:03:01.9]} 1... e6 {[%clk 0:02:56]} 2. d4 {[%clk 0:03:01.6]} 2...
d5 {[%clk 0:02:55.3]} 3. Nd2 {[%clk 0:03:02.8]} 3... Nf6 {[%clk 0:02:52.2]} 4.
e5 {[%clk 0:03:03.3]} 4... Nfd7 {[%clk 0:02:53.6]} 5. Bd3 {[%clk 0:03:04.7]}
5... c5 {[%clk 0:02:54.8]} 6. c3 {[%clk 0:03:06]} 6... Nc6 {[%clk 0:02:56.5]} 7.
Ne2 {[%clk 0:03:07.5]} 7... cxd4 {[%clk 0:02:56.1]} 8. cxd4 {[%clk 0:03:08.2]}
8... f6 {[%clk 0:02:58]} 9. exf6 {[%clk 0:03:08.8]} 9... Nxf6 {[%clk 0:02:59.9]}
10. Nf3 {[%clk 0:03:10.3]} 10... Bd6 {[%clk 0:03:01.3]} 11. O-O {[%clk
0:03:08.3]} 11... Qc7 {[%clk 0:03:02.7]} 12. Ng3 {[%clk 0:03:09.6]} 12... O-O
{[%clk 0:03:02.9]} 13. Be3 {[%clk 0:03:09.3]} 13... Bd7 {[%clk 0:03:02.3]} 14.
Rc1 {[%clk 0:03:10.3]} 14... a6 {[%clk 0:03:02.4]} 15. Re1 {[%clk 0:03:07]}
15... Rae8 {[%clk 0:03:02.6]} 16. a3 {[%clk 0:03:06.8]} 16... Qb8 {[%clk
0:02:59.4]} 17. Bb1 {[%clk 0:02:55.3]} 17... e5 {[%clk 0:02:56.7]} 18. dxe5
{[%clk 0:02:55.7]} 18... Nxe5 {[%clk 0:02:58.6]} 19. Nxe5 {[%clk 0:02:56.5]}
19... Bxe5 {[%clk 0:03:00.5]} 20. Bd4 {[%clk 0:02:35]} 20... Bc6 {[%clk
0:02:55]} 21. Nf5 {[%clk 0:02:13.4]} 21... Bxh2+ {[%clk 0:02:38.3]} 22. Kh1
{[%clk 0:02:14.4]} 22... Be5 {[%clk 0:02:34.9]} 23. Qf3 {[%clk 0:02:07.4]} 23...
Bxd4 {[%clk 0:02:28.8]} 24. Rxe8 {[%clk 0:02:04.7]} 24... Qxe8 {[%clk
0:02:27.4]} 25. Nxd4 {[%clk 0:01:58]} 25... Ne4 {[%clk 0:02:25.9]} 26. Nf5
{[%clk 0:01:52.2]} 26... Bd7 {[%clk 0:02:10.9]} 27. Nd6 {[%clk 0:01:08.2]} 27...
Nxd6 {[%clk 0:02:06.4]} 28. Qxd5+ {[%clk 0:01:08.1]} 28... Qe6 {[%clk
0:02:00.1]} 29. Qh5 {[%clk 0:01:08.7]} 29... g6 {[%clk 0:01:56.8]} 30. Qh4
{[%clk 0:01:04.7]} 30... Bc6 {[%clk 0:01:53]} 31. f3 {[%clk 0:00:56.4]} 31...
Nf5 {[%clk 0:01:52.3]} 32. Qh3 {[%clk 0:00:47.5]} 32... Kg7 {[%clk 0:01:50.7]}
33. Rd1 {[%clk 0:00:39.8]} 33... Qe5 {[%clk 0:01:44.1]} 34. Ba2 {[%clk
0:00:29.4]} 34... Qe2 {[%clk 0:01:34.1]} 35. Bb3 {[%clk 0:00:19.5]} 35... Qxb2
{[%clk 0:01:33.3]} 36. Bd5 {[%clk 0:00:18.5]} 36... Qc2 {[%clk 0:01:28]} 37. Re1
{[%clk 0:00:07.5]} 37... Bxd5 {[%clk 0:01:26.1]} 38. Qh2 {[%clk 0:00:08.2]}
38... Qc3 {[%clk 0:01:23.5]} 39. Rd1 {[%clk 0:00:07.2]} 39... Bc6 {[%clk
0:01:23.2]} 40. Qc7+ {[%clk 0:00:07.8]} 40... Rf7 {[%clk 0:01:23.6]} 41. Qc8
{[%clk 0:00:08]} 41... Re7 {[%clk 0:01:15.9]} 42. Rd8 {[%clk 0:00:08.9]} 42...
Re1+ {[%clk 0:01:16.5]} 43. Kh2 {[%clk 0:00:10.2]} 43... Qe5+ {[%clk 0:01:17.9]}
0-1